fUSD/lending_fUSD_20250217
["ID","MTS","AMOUNT","RATE_DAILY","PERIOD"]
[353424277,1739823053035,-500.0,0.0001378,2]
[353424279,1739823053049,-151.0,0.0001378,2]
[353424281,1739823053059,-184.0069,0.0001378,2]
[353424283,1739823053070,-500.0,0.0001378,2]
[353424285,1739823053080,-195.917577,0.0001378,2]
[353424287,1739823053090,-500.0,0.0001378,2]
[353424289,1739823053100,-500.0,0.0001378,2]
[353424291,1739823053110,-500.0,0.0001378,2]
[353424293,1739823053120,-500.0,0.0001378,2]
[353424295,1739823053130,-500.0,0.0001378,2]
[353424297,1739823053140,-500.0,0.0001378,2]
[353424299,1739823053150,-343.06,0.0001378,2]
[353424301,1739823053160,-603.12,0.0001378,2]
[353424303,1739823053170,-500.0,0.0001378,2]
[353424305,1739823053179,-500.0,0.0001378,2]
[353424307,1739823053189,-500.0,0.0001378,2]
[353424310,1739823053199,-500.0,0.0001378,2]
[353424312,1739823053209,-500.0,0.0001378,2]
[353424314,1739823053219,-500.0,0.0001378,2]
[353424316,1739823053229,-500.0,0.0001378,2]
[353424318,1739823053239,-629.27328565,0.0001378,2]
[353424320,1739823053249,-500.0,0.0001378,2]
[353424322,1739823053259,-835.33,0.0001378,2]
[353424324,1739823053269,-500.0,0.0001378,2]
[353424326,1739823053279,-391.82,0.0001378,2]
[353424328,1739823053288,-500.0,0.0001378,2]
[353424330,1739823053298,-500.0,0.0001378,2]
[353424332,1739823053308,-510.71,0.0001378,2]
[353424334,1739823053317,-759.07,0.0001378,2]
[353424336,1739823053327,-251.18,0.0001378,2]
[353424338,1739823053337,-500.0,0.0001378,2]
[353424340,1739823053346,-971.87,0.0001378,2]
[353424342,1739823053356,-226.6,0.0001378,2]
[353424343,1739823053366,-500.0,0.0001378,2]
[353424345,1739823053376,-500.0,0.0001378,2]
[353424346,1739823053385,-915.62,0.0001378,2]
[353424348,1739823053395,-154.08,0.0001378,2]
[353424350,1739823053405,-545.1,0.000138,2]
[353424351,1739823053414,-151.0,0.000138,2]
[353424353,1739823053424,-151.0,0.000138,2]
[353424354,1739823053433,-151.0,0.000138,2]
[353424356,1739823053444,-151.0,0.000138,2]
[353424358,1739823053454,-4700.0,0.000138,5]
[353424359,1739823053463,-562.76049765,0.00013808,2]
[353424361,1739823053473,-295.35406194,0.00013827,2]
[353424372,1739823053641,-500.0,0.00013833,2]
[353424374,1739823053653,-163.37788915,0.00013836,2]
[353424375,1739823053662,-150.0,0.00013846,2]
[353424376,1739823053672,-1923.94944266,0.00013848,2]
[353424377,1739823053682,-1205.15026183,0.00013862,5]
[353424378,1739823053691,-500.0,0.00013862,2]
[353424379,1739823053701,-500.0,0.00013862,2]
[353424381,1739823053710,-1000.0,0.00013862,2]
[353424382,1739823053719,-151.0,0.00013863,2]
[353424384,1739823053729,-151.0,0.00013863,2]
[353424385,1739823053739,-439.25,0.00013863,2]
[353424386,1739823053749,-151.0,0.00013863,2]
[353424387,1739823053760,-151.0,0.00013863,2]
[353424388,1739823053769,-500.0,0.00013863,2]
[353424389,1739823053779,-500.0,0.00013863,2]
[353424390,1739823053788,-151.0,0.00013863,2]
[353424391,1739823053797,-598.3,0.00013863,2]
[353424392,1739823053807,-500.0,0.00013863,2]
[353424393,1739823053817,-500.0,0.00013863,2]
[353424394,1739823053826,-151.0,0.00013863,2]
[353424395,1739823053836,-509.95,0.00013863,2]
[353424396,1739823053845,-500.0,0.00013863,2]
[353424397,1739823053855,-151.0,0.00013863,2]
[353424398,1739823053865,-351.7,0.00013863,2]
[353424399,1739823053875,-500.0,0.00013863,2]
[353424400,1739823053884,-721.72,0.00013863,2]
[353424401,1739823053894,-151.0,0.00013863,2]
[353424402,1739823053903,-500.0,0.00013863,2]
[353424403,1739823053913,-151.0,0.00013863,2]
[353424404,1739823053922,-500.0,0.00013863,2]
[353424405,1739823053932,-568.0,0.00013863,2]
[353424406,1739823053941,-500.0,0.00013863,2]
[353424407,1739823053951,-500.0,0.00013863,2]
[353424408,1739823053960,-500.0,0.00013863,2]
[353424409,1739823053973,-500.0,0.00013863,2]
[353424410,1739823053982,-528.54,0.00013863,2]
[353424411,1739823053992,-500.0,0.00013863,2]
[353424412,1739823054001,-500.0,0.00013863,2]
[353424413,1739823054011,-500.0,0.00013863,2]
[353424414,1739823054021,-500.0,0.00013863,2]
[353424415,1739823054030,-500.0,0.00013863,2]
[353424416,1739823054040,-500.0,0.00013863,2]
[353424417,1739823054051,-500.0,0.00013863,2]
[353424418,1739823054060,-500.0,0.00013863,2]
[353424419,1739823054070,-500.0,0.00013863,2]
[353424420,1739823054079,-500.0,0.00013863,2]
[353424421,1739823054088,-165.32,0.00013863,2]
[353424422,1739823054098,-500.0,0.00013863,2]
[353424423,1739823054107,-500.0,0.00013863,2]
[353424424,1739823054117,-500.0,0.00013863,2]
[353424425,1739823054126,-500.0,0.00013863,2]
[353424426,1739823054136,-500.0,0.00013863,2]
[353424427,1739823054146,-500.0,0.00013863,2]
[353424428,1739823054156,-500.0,0.00013863,2]
[353424429,1739823054166,-500.0,0.00013863,2]
[353424430,1739823054175,-500.0,0.00013863,2]
[353424431,1739823054186,-500.0,0.00013863,2]
[353424432,1739823054196,-500.0,0.00013863,2]
[353424433,1739823054207,-500.0,0.00013863,2]
[353424434,1739823054217,-87.54041093,0.00013863,2]
[353424435,1739823054522,-440.01874215,0.00013698,2]
[353424436,1739823054532,-500.0,0.00013698,2]
[353424437,1739823054543,-500.0,0.0001378,2]
[353424438,1739823054553,-500.0,0.0001378,2]
[353424439,1739823054563,-412.45958907,0.00013863,2]
[353424440,1739823054573,-510.88666813,0.00013863,2]
[353424441,1739823054583,-500.0,0.00013863,2]
[353424442,1739823054593,-500.0,0.00013863,2]
[353424443,1739823054602,-87.42310539,0.00013863,2]
[353424444,1739823054614,-349.87046341,0.00013863,2]
[353424445,1739823054629,-62.7064312,0.00013863,2]
[353424446,1739823054638,-245.82215765,0.00013863,2]
[353424447,1739823054649,-254.17784235,0.00013863,2]
[353424448,1739823054659,-195.13,0.00013863,2]
[353424449,1739823054669,-527.08,0.00013863,2]
[353424450,1739823054678,-500.0,0.00013863,2]
[353424451,1739823054688,-500.0,0.00013863,2]
[353424452,1739823054698,-500.0,0.00013863,2]
[353424453,1739823054720,-500.0,0.00013863,2]
[353424454,1739823054729,-500.0,0.00013863,2]
[353424455,1739823054740,-500.0,0.00013863,2]
[353424456,1739823054749,-500.0,0.00013863,2]
[353424457,1739823054760,-500.0,0.00013863,2]
[353424458,1739823054770,-500.0,0.00013863,2]
[353424459,1739823054780,-128.14654203,0.00013863,2]
[353424460,1739823054795,-371.85345797,0.00013863,2]
[353424461,1739823054805,-500.0,0.00013863,2]
[353424462,1739823054815,-207.06438203,0.00013863,2]
[353424463,1739823054827,-253.37492,0.00013863,2]
[353424464,1739823054839,-39.56069797,0.00013863,2]
[353424465,1739823054849,-223.69748503,0.00013863,2]
[353424466,1739823054862,-276.30251497,0.00013863,2]
[353424467,1739823054872,-68.64781197,0.00013863,2]
[353424468,1739823054891,-431.35218803,0.00013863,2]
[353424469,1739823054902,-500.0,0.00013863,2]
[353424470,1739823054912,-500.0,0.00013863,2]
[353424471,1739823054922,-346.47001088,0.00013863,2]
[353424472,1739823054934,-153.52998912,0.00013863,2]
[353424473,1739823054945,-511.55030465,0.00013863,2]
[353424474,1739823054955,-477.25,0.00013863,2]
[353424475,1739823054969,-500.0,0.00013863,2]
[353424476,1739823054978,-500.0,0.00013863,2]
[353424477,1739823054989,-500.0,0.00013863,2]
[353424478,1739823054999,-22.66970123,0.00013863,2]
[353424479,1739823055013,-571.67029877,0.00013863,2]
[353424480,1739823055023,-500.0,0.00013863,2]
[353424481,1739823055033,-500.0,0.00013863,2]
[353424482,1739823055044,-500.0,0.00013863,2]
[353424483,1739823055054,-500.0,0.00013863,2]
[353424484,1739823055065,-379.85379698,0.00013863,2]
[353424485,1739823055077,-120.14620302,0.00013863,2]
[353424486,1739823055087,-500.0,0.00013863,2]
[353424487,1739823055097,-500.0,0.00013863,2]
[353424488,1739823055107,-501.41709868,0.00013863,2]
[353424489,1739823055116,-500.0,0.00013863,2]
[353424490,1739823055127,-500.0,0.00013863,2]
[353424491,1739823055137,-194.85,0.00013863,2]
[353424492,1739823055148,-500.0,0.00013863,2]
[353424493,1739823055158,-500.0,0.00013863,2]
[353424494,1739823055168,-500.0,0.00013863,2]
[353424495,1739823055178,-500.0,0.00013863,2]
[353424496,1739823055188,-500.0,0.00013863,2]
[353424497,1739823055197,-500.0,0.00013863,2]
[353424498,1739823055206,-500.0,0.00013863,2]
[353424499,1739823055216,-503.50855532,0.00013863,2]
[353424500,1739823055225,-500.0,0.00013863,2]
[353424501,1739823055235,-614.47,0.00013863,2]
[353424502,1739823055246,-328.702877,0.00013863,2]
[353424503,1739823055256,-500.0,0.00013863,2]
[353424504,1739823055266,-500.0,0.00013863,2]
[353424505,1739823055276,-500.0,0.00013863,2]
[353424506,1739823055286,-500.0,0.00013863,2]
[353424507,1739823055295,-312.46573973,0.00013863,2]
[353424508,1739823055305,-500.0,0.00013863,2]
[353424509,1739823055315,-426.469672,0.00013863,2]
[353424510,1739823055329,-73.530328,0.00013863,2]
[353424511,1739823055339,-456.49652863,0.00013863,2]
[353424512,1739823055349,-500.0,0.00013863,2]
[353424513,1739823055360,-101.09409597,0.00013863,2]
[353424514,1739823055372,-398.90590403,0.00013863,2]
[353424515,1739823055381,-500.0,0.00013863,2]
[353424516,1739823055391,-500.31882,0.00013863,2]
[353424517,1739823055402,-500.0,0.00013863,2]
[353424518,1739823055411,-500.0,0.00013863,2]
[353424519,1739823055421,-485.8,0.00013863,2]
[353424520,1739823055431,-500.0,0.00013863,2]
[353424521,1739823055441,-280.08,0.00013863,2]
[353424522,1739823055452,-500.0,0.00013863,2]
[353424523,1739823055461,-500.0,0.00013863,2]
[353424524,1739823055471,-500.0,0.00013863,2]
[353424525,1739823055481,-500.0,0.00013863,2]
[353424526,1739823055492,-500.0,0.00013863,2]
[353424527,1739823055501,-500.0,0.00013863,2]
[353424528,1739823055511,-500.0,0.00013863,2]
[353424529,1739823055520,-500.0,0.00013863,2]
[353424530,1739823055530,-500.0,0.00013863,2]
[353424531,1739823055539,-87.5329412,0.00013863,2]
[353424532,1739823055552,-412.4670588,0.00013863,2]
[353424533,1739823055561,-500.0,0.00013863,2]
[353424534,1739823055571,-500.0,0.00013863,2]
[353424535,1739823055580,-500.0,0.00013863,2]
[353424536,1739823055590,-500.0,0.00013863,2]
[353424537,1739823055600,-632.76,0.00013863,2]
[353424538,1739823055609,-500.0,0.00013863,2]
[353424539,1739823055619,-500.0,0.00013863,2]
[353424540,1739823055628,-500.0,0.00013863,2]
[353424541,1739823055638,-500.0,0.00013863,2]
[353424542,1739823055647,-154.65517445,0.00013863,2]
[353424543,1739823055659,-345.34482555,0.00013863,2]
[353424544,1739823055669,-500.0,0.00013863,2]
[353424545,1739823055678,-500.0,0.00013863,2]
[353424546,1739823055687,-500.0,0.00013863,2]
[353424547,1739823055697,-500.0,0.00013863,2]
[353424548,1739823055706,-89.43988895,0.00013863,2]
[353424549,1739823055724,-410.56011105,0.00013863,2]
[353424550,1739823055734,-163.553088,0.00013863,2]
[353424551,1739823055743,-500.0,0.00013863,2]
[353424552,1739823055753,-410.6172811,0.00013863,2]
[353424553,1739823055765,-89.3827189,0.00013863,2]
[353424554,1739823055774,-176.32,0.00013863,2]
[353424555,1739823055784,-500.0,0.00013863,2]
[353424556,1739823055794,-500.0,0.00013863,2]
[353424557,1739823055804,-500.21,0.00013863,2]
[353424558,1739823055813,-500.0,0.00013863,2]
[353424559,1739823055823,-500.0,0.00013863,2]
[353424560,1739823055833,-158.941998,0.00013863,2]
[353424561,1739823055842,-500.0,0.00013863,2]
[353424562,1739823055852,-500.0,0.00013863,2]
[353424563,1739823055862,-500.0,0.00013863,2]
[353424564,1739823055871,-500.0,0.00013863,2]
[353424565,1739823055881,-500.0,0.00013863,2]
[353424566,1739823055891,-500.0,0.00013863,2]
[353424567,1739823055900,-500.0,0.00013863,2]
[353424568,1739823055910,-500.0,0.00013863,2]
[353424569,1739823055919,-500.0,0.00013863,2]
[353424570,1739823055929,-500.0,0.00013863,2]
[353424571,1739823055939,-500.0,0.00013863,2]
[353424572,1739823056020,-500.0,0.00013863,2]
[353424573,1739823056031,-151.758506,0.00013863,2]
[353424574,1739823056040,-500.0,0.00013863,2]
[353424575,1739823056050,-500.0,0.00013863,2]
[353424576,1739823056059,-500.0,0.00013863,2]
[353424577,1739823056069,-500.0,0.00013863,2]
[353424578,1739823056077,-500.0,0.00013863,2]
[353424579,1739823056087,-500.0,0.00013863,2]
[353424580,1739823056096,-500.0,0.00013863,2]
[353424581,1739823056106,-500.0,0.00013863,2]
[353424582,1739823056116,-500.0,0.00013863,2]
[353424583,1739823056126,-566.39745874,0.00013863,2]
[353424584,1739823056136,-500.0,0.00013863,2]
[353424585,1739823056146,-158.837204,0.00013863,2]
[353424586,1739823056155,-500.0,0.00013863,2]
[353424587,1739823056165,-425.39216256,0.00013863,2]
[353424588,1739823101548,1677.888,0.000205,120]
[353424589,1739823547912,513.326,8.699e-05,2]
[353424590,1739823561520,-2324.7787,8.836e-05,2]
[353424591,1739823561546,-7675.2213,8.836e-05,2]
[353424592,1739823584698,266.7372,8.699e-05,2]
[353424593,1739823936937,10000.0,8e-05,2]
[353424594,1739823955426,29161.75984944,6.94e-05,2]
[353424643,1739824232332,-2324.7787,8.836e-05,2]
[353424644,1739824232370,-341.9385928,8.836e-05,2]
[353424645,1739824232535,-20351.2550072,8.836e-05,2]
[353424646,1739824232546,-3319.7998,8.836e-05,2]
[353424647,1739824232555,-1305.0,8.836e-05,2]
[353424648,1739824232564,-205.0,9.8e-05,2]
[353424649,1739824232574,-794.06291161,9.828e-05,2]
[353424650,1739824232584,-700.0,9.968e-05,2]
[353424651,1739824232594,-252659.23371995,0.0001,2]
[353424652,1739824232606,-67243.35793089,0.0001,2]
[353424653,1739824232615,-416.09,0.00010137,2]
[353424654,1739824232624,-1764.22,0.00010259,2]
[353424655,1739824232634,-500.0,0.00011041,2]
[353424656,1739824232644,-500.0,0.00011064,2]
[353424657,1739824232654,-700.0,0.00011064,2]
[353424659,1739824232663,-505.44,0.00011064,2]
[353424661,1739824232672,-5425.25863694,0.00011099,2]
[353424663,1739824232682,-700.0,0.00011338,2]
[353424665,1739824232691,-29999.99,0.00011338,2]
[353424667,1739824232700,-5425.25863685,0.00011373,2]
[353424669,1739824232709,-494.02,0.0001164,2]
[353424671,1739824232718,-5425.25863685,0.00011805,2]
[353424673,1739824232727,-739.33,0.00012025,2]
[353424675,1739824232737,-23900.0,0.00012073,2]
[353424676,1739824232746,-775.76,0.00012082,2]
[353424678,1739824232755,-775.76,0.00012082,2]
[353424680,1739824232764,-790.44,0.00012107,2]
[353424682,1739824232773,-179.67,0.00012216,2]
[353424684,1739824232782,-497.75,0.00012218,2]
[353424686,1739824232791,-5425.25863685,0.00012237,2]
[353424688,1739824232800,-416.86,0.00012323,2]
[353424690,1739824232809,-700.0,0.00012434,2]
[353424692,1739824232818,-500.0,0.00012438,2]
[353424694,1739824232828,-500.0,0.00012438,2]
[353424696,1739824232837,-250.0,0.00012449,2]
[353424698,1739824232846,-294.72894975,0.000125,2]
[353424700,1739824232855,-1764.22,0.00012523,2]
[353424702,1739824232864,-155.54,0.00012565,2]
[353424704,1739824232873,-352.71,0.00012603,2]
[353424706,1739824232883,-2000.0,0.00012651,2]
[353424708,1739824232893,-5425.25863685,0.00012669,2]
[353424710,1739824232902,-700.0,0.00012708,2]
[353424712,1739824232912,-150.0,0.00012806,2]
[353424714,1739824232921,-1000.0,0.00012823,2]
[353424716,1739824232931,-150.0,0.00012836,2]
[353424718,1739824232940,-150.0,0.00012868,2]
[353424720,1739824232949,-150.0,0.00012874,2]
[353424722,1739824232958,-295.16980306,0.0001297,2]
[353424724,1739824232967,-153.78535812,0.0001297,2]
[353424726,1739824232977,-219.32950524,0.0001297,2]
[353424727,1739824232986,-150.0,0.00012983,2]
[353424729,1739824232996,-2440.49443416,0.00013,2]
[353424731,1739824233005,-150.0,0.00013,2]
[353424733,1739824233014,-150.0,0.00013041,2]
[353424735,1739824233024,-150.0,0.00013041,2]
[353424737,1739824233033,-150.0,0.00013041,2]
[353424739,1739824233042,-986.58,0.00013041,2]
[353424741,1739824233051,-439.06,0.00013041,2]
[353424743,1739824233061,-150.0,0.00013082,2]
[353424745,1739824233071,-150.0,0.00013093,2]
[353424747,1739824233080,-150.0,0.00013104,2]
[353424749,1739824233090,-150.0,0.00013156,2]
[353424751,1739824233100,-320.47580014,0.0001316,2]
[353424753,1739824233109,-150.0,0.00013217,2]
[353424755,1739824233123,-150.0,0.00013223,2]
[353424757,1739824233134,-500.0,0.0001326,2]
[353424760,1739824233144,-1000.0,0.00013308,2]
[353424762,1739824233153,-150.0,0.00013345,2]
[353424764,1739824233163,-493.62,0.00013386,2]
[353424766,1739824233173,-150.0,0.00013397,2]
[353424768,1739824233182,-150.0,0.00013415,2]
[353424769,1739824233192,-150.0,0.0001343,2]
[353424771,1739824233201,-150.0,0.00013456,2]
[353424773,1739824233210,-150.0,0.0001346,2]
[353424775,1739824233221,-150.0,0.00013512,2]
[353424777,1739824233230,-150.0,0.00013522,2]
[353424779,1739824233240,-150.0,0.00013526,2]
[353424781,1739824233250,-432.08438454,0.00013535,2]
[353424783,1739824233260,-384.0754986,0.00013585,2]
[353424785,1739824233270,-1346.76460988,0.00013598,2]
[353424787,1739824233279,-158.44646066,0.000136,2]
[353424789,1739824233289,-2000.0,0.000136,4]
[353424792,1739824233299,-790.44,0.0001362,2]
[353424794,1739824233309,-150.0,0.00013638,2]
[353424796,1739824233318,-500.0,0.00013698,2]
[353424798,1739824233328,-500.0,0.00013698,2]
[353424800,1739824233338,-569.80514829,0.00013698,2]
[353424801,1739824233349,-500.0,0.00013698,2]
[353424804,1739824233362,-500.0,0.00013698,2]
[353424805,1739824233372,-500.0,0.00013698,2]
[353424807,1739824233382,-500.0,0.00013698,2]
[353424809,1739824233392,-531.60269616,0.00013698,2]
[353424812,1739824233404,-500.0,0.00013698,2]
[353424814,1739824233413,-384.28,0.00013698,2]
[353424816,1739824233423,-500.0,0.00013698,2]
[353424818,1739824233436,-500.0,0.00013698,2]
[353424820,1739824233446,-408.63,0.00013698,2]
[353424822,1739824233455,-500.0,0.00013698,2]
[353424824,1739824233464,-500.0,0.00013698,2]
[353424826,1739824233474,-256.63,0.00013698,2]
[353424828,1739824233483,-500.0,0.00013698,2]
[353424830,1739824233493,-500.0,0.00013698,2]
[353424832,1739824233502,-500.0,0.00013698,2]
[353424833,1739824233511,-500.0,0.00013698,2]
[353424835,1739824233521,-500.0,0.00013698,2]
[353424837,1739824233530,-500.0,0.00013698,2]
[353424839,1739824233539,-500.0,0.00013698,2]
[353424841,1739824233549,-500.0,0.00013698,2]
[353424843,1739824233558,-500.0,0.00013698,2]
[353424845,1739824233567,-500.0,0.00013698,2]
[353424847,1739824233577,-500.0,0.00013698,2]
[353424849,1739824233586,-500.0,0.00013698,2]
[353424851,1739824233595,-500.0,0.00013698,2]
[353424853,1739824233608,-255.49,0.00013698,2]
[353424855,1739824233617,-500.0,0.00013698,2]
[353424857,1739824233627,-500.0,0.00013698,2]
[353424859,1739824233638,-500.0,0.00013698,2]
[353424861,1739824233647,-500.0,0.00013698,2]
[353424863,1739824233657,-500.0,0.00013698,2]
[353424865,1739824233667,-500.0,0.00013698,2]
[353424867,1739824233677,-500.0,0.00013698,2]
[353424870,1739824233686,-500.0,0.00013698,2]
[353424872,1739824233696,-500.0,0.00013698,2]
[353424874,1739824233706,-347.35,0.00013698,2]
[353424876,1739824233715,-500.0,0.00013698,2]
[353424878,1739824233725,-500.0,0.00013698,2]
[353424880,1739824233735,-564.06,0.00013698,2]
[353424882,1739824233744,-500.0,0.00013698,2]
[353424884,1739824233753,-500.0,0.00013698,2]
[353424886,1739824233763,-500.0,0.00013698,2]
[353424888,1739824233772,-500.0,0.00013698,2]
[353424889,1739824233781,-500.0,0.00013698,2]
[353424891,1739824233791,-500.0,0.00013698,2]
[353424892,1739824233800,-371.41,0.00013698,2]
[353424894,1739824233809,-218.84476885,0.00013698,2]
[353424896,1739824233818,-500.0,0.00013698,2]
[353424898,1739824233828,-500.0,0.00013698,2]
[353424899,1739824233837,-500.0,0.00013698,2]
[353424900,1739824233846,-500.0,0.00013698,2]
[353424901,1739824233856,-563.04,0.00013698,2]
[353424902,1739824233865,-563.04,0.00013698,2]
[353424903,1739824233874,-563.04,0.00013698,2]
[353424904,1739824233884,-500.0,0.00013698,2]
[353424905,1739824233892,-500.0,0.00013698,2]
[353424906,1739824233902,-500.0,0.00013698,2]
[353424907,1739824233911,-500.0,0.00013698,2]
[353424908,1739824233921,-532.7,0.00013698,2]
[353424909,1739824233931,-590.81,0.00013698,2]
[353424910,1739824233941,-577.67,0.00013698,2]
[353424911,1739824233950,-1001.9,0.00013698,2]
[353424912,1739824233959,-587.36,0.00013698,2]
[353424913,1739824233969,-1071.78,0.00013698,2]
[353424914,1739824233979,-977.2,0.00013698,2]
[353424915,1739824233989,-909.38,0.00013698,2]
[353424916,1739824233999,-773.35,0.00013698,2]
[353424917,1739824234008,-500.0,0.00013698,2]
[353424918,1739824234017,-500.0,0.00013698,2]
[353424919,1739824234027,-599.87,0.00013698,2]
[353424920,1739824234036,-1025.81,0.00013698,2]
[353424921,1739824234046,-1111.81,0.00013698,2]
[353424922,1739824234055,-683.66,0.00013698,2]
[353424923,1739824234065,-500.0,0.00013698,2]
[353424924,1739824234075,-1058.99,0.00013698,2]
[353424925,1739824234085,-500.0,0.00013698,2]
[353424926,1739824234094,-500.0,0.00013698,2]
[353424927,1739824234106,-500.0,0.00013698,2]
[353424928,1739824234115,-765.72,0.00013698,2]
[353424929,1739824234126,-500.0,0.00013698,2]
[353424930,1739824234135,-1329.95,0.00013698,2]
[353424931,1739824234146,-514.73,0.00013698,2]
[353424932,1739824234156,-500.0,0.00013698,2]
[353424933,1739824234166,-500.0,0.00013698,2]
[353424934,1739824234176,-500.0,0.00013698,2]
[353424935,1739824234186,-500.0,0.00013698,2]
[353424936,1739824234196,-155.989735,0.00013698,2]
[353424937,1739824234206,-552.86,0.00013698,2]
[353424938,1739824234215,-501.66708305,0.00013698,2]
[353424939,1739824234226,-501.0,0.00013698,2]
[353424940,1739824234236,-150.23,0.00013698,2]
[353424941,1739824234246,-492.99,0.00013698,2]
[353424942,1739824234469,-495.95,0.00013698,2]
[353424943,1739824234480,-4000.0,0.00013699,2]
[353424944,1739824234490,-200.0,0.00013699,2]
[353424945,1739824234500,-563.04,0.00013699,2]
[353424946,1739824234511,-235.59232727,0.00013699,2]
[353424947,1739824234521,-202431.33750817,0.000137,3]
[353424948,1739824234531,-4000.0,0.000137,5]
[353424949,1739824234541,-4000.0,0.0001372,2]
[353424950,1739824234550,-1346.76460986,0.00013742,2]
[353424951,1739824234560,-150.0,0.00013758,2]
[353424952,1739824234569,-1070.83,0.00013777,2]
[353424953,1739824234579,-695.82,0.00013777,2]
[353424954,1739824234588,-685.81,0.00013777,2]
[353424955,1739824234598,-500.0,0.00013777,2]
[353424956,1739824234608,-937.42,0.00013777,2]
[353424957,1739824234617,-500.0,0.00013777,2]
[353424958,1739824234628,-500.0,0.00013777,2]
[353424959,1739824234638,-795.398462,0.00013777,2]
[353424960,1739824234648,-816.26,0.00013777,2]
[353424961,1739824234657,-500.0,0.00013777,2]
[353424962,1739824234666,-156.649254,0.00013777,2]
[353424963,1739824234676,-591.42,0.00013777,2]
[353424964,1739824234685,-500.0,0.00013777,2]
[353424965,1739824234694,-732.62,0.00013777,2]
[353424966,1739824234703,-567.58,0.00013777,2]
[353424967,1739824234712,-670.65,0.00013777,2]
[353424968,1739824234721,-876.32,0.00013777,2]
[353424969,1739824234730,-548.070799,0.00013777,2]
[353424970,1739824234741,-975.56,0.00013777,2]
[353424971,1739824234750,-500.0,0.00013777,2]
[353424972,1739824234760,-513.1,0.00013777,2]
[353424973,1739824234769,-2432.3,0.00013777,2]
[353424974,1739824234778,-500.0,0.00013777,2]
[353424975,1739824234787,-617.48,0.00013777,2]
[353424976,1739824234797,-1151.84,0.00013777,2]
[353424977,1739824234806,-651.63,0.00013777,2]
[353424978,1739824234815,-1462.81,0.00013777,2]
[353424979,1739824234825,-500.0,0.00013777,2]
[353424980,1739824234834,-934.89,0.00013777,2]
[353424981,1739824234843,-566.1,0.00013777,2]
[353424982,1739824234853,-985.31,0.00013777,2]
[353424983,1739824234862,-628.67,0.00013777,2]
[353424984,1739824234871,-500.0,0.00013777,2]
[353424985,1739824234880,-890.88,0.00013777,2]
[353424986,1739824234889,-500.0,0.00013778,2]
[353424987,1739824234898,-500.0,0.00013778,2]
[353424988,1739824234907,-501.47122278,0.00013778,2]
[353424989,1739824234916,-278.18356383,0.00013778,2]
[353424990,1739824234926,-209.53516914,0.00013778,2]
[353424991,1739824234935,-500.0,0.00013778,2]
[353424992,1739824234945,-500.0,0.00013778,2]
[353424993,1739824234955,-501.52107919,0.00013778,2]
[353424994,1739824234964,-500.0,0.00013778,2]
[353424995,1739824234976,-500.0,0.00013778,2]
[353424996,1739824234985,-473.8038456,0.00013778,2]